[Event "Balkan Youth Online-ch 2020"]
[Site "Online"]
[Date "2020.10.31"]
[Round "4.6"]
[White "Alimema, Alvin"]
[Black "Kovacec, Tilen"]
[Result "1/2-1/2"]
[ECO "B21"]
[WhiteElo "1110"]
[BlackElo "1183"]
[Annotator "NA RC"]
[PlyCount "117"]
[EventDate "2020.10.31"]
[EventType "swiss"]
[SourceTitle "playchess.com"]
[Source "ChessBase"]
[SourceQuality "1"]
[TimeControl "1500+5"]

1. e4 {[%emt 0:00:00]} c5 {[%emt 0:00:00]} 2. f4 {[%emt 0:00:00]} Nc6 {[%emt 0:00:00]} 3. Nf3 {[%emt 0:00:00]} g6 {[%emt 0:00:00]} 4. Bb5 {[%emt 0:00:00]} Bg7 {[%emt 0:00:00]} 5. Bxc6 {[%emt 0:00:00]} bxc6 {[%emt 0:00:00]} 6. Nc3 {[%emt 0:00:00]} Ba6 {[%emt 0:00:05]} 7. d3 {[%emt 0:00:00]} d6 {[%emt 0:00:18]} 8. O-O {[%emt 0:00:40]} Nf6 {[%emt 0:00:18]} 9. Qe1 {[%emt 0:00:36]} O-O {[%emt 0:00:52]} 10. Qh4 {[%emt 0:00:07]} Rb8 {[%emt 0:01:13]} 11. f5 {[%emt 0:00:23]} Qb6 {[%emt 0:00:26]} 12. Ng5 {[%emt 0:01:22]} h5 {[%emt 0:00:13]} 13. Qf2 {[%emt 0:01:52]} Ng4 {[%emt 0:00:55]} 14. Qe2 {[%emt 0:00:55]} c4+ {[%emt 0:00:06]} 15. Kh1 {[%emt 0:00:03]} cxd3 {[%emt 0:00:01]} 16. cxd3 {[%emt 0:00:11]} Ne5 {[%emt 0:00:15]} 17. Rd1 {[%emt 0:00:51]} Qb7 {[%emt 0:04:13]} 18. Nf3 {[%emt 0:02:43]} Nxf3 {[%emt 0:00:37]} 19. Qxf3 {[%emt 0:00:11]} Qb4 {[%emt 0:01:30]} 20. a3 {[%emt 0:06:28]} Qb7 {[%emt 0:00:07]} 21. d4 {[%emt 0:00:39]} Qb3 {[%emt 0:01:20]} 22. Rb1 {[%emt 0:01:01]} c5 {[%emt 0:00:02]} 23. Nd5 {[%emt 0:01:09]} Qxf3 {[%emt 0:00:07]} 24. gxf3 {[%emt 0:00:03]} e6 {[%emt 0:00:17]} 25. Ne7+ {[%emt 0:00:23]} Kh7 {[%emt 0:00:05]} 26. dxc5 {[%emt 0:00:00]} dxc5 {[%emt 0:00:37]} 27. Kg2 {[%emt 0:01:42]} Rb7 {[%emt 0:00:59]} 28. Nc6 {[%emt 0:01:28]} exf5 {[%emt 0:00:30]} 29. exf5 {[%emt 0:00:02]} gxf5 {[%emt 0:00:00]} 30. Rd5 {[%emt 0:00:43]} Rb6 {[%emt 0:00:29]} 31. Ne5 {[%emt 0:01:25]} Re6 {[%emt 0:00:34]} 32. Nd7 {[%emt 0:01:44]} Rd8 {[%emt 0:00:10]} 33. Bg5 {[%emt 0:00:00]} Rg8 {[%emt 0:00:09]} 34. Nxc5 {[%emt 0:00:48]} Rg6 {[%emt 0:00:11]} 35. Nxa6 {[%emt 0:00:03]} Rxa6 {[%emt 0:00:00]} 36. Bf4 {[%emt 0:00:08]} Bh6+ {[%emt 0:00:00]} 37. Bg3 {[%emt 0:00:03]} f4 {[%emt 0:00:00]} 38. Rxh5 {[%emt 0:00:00]} fxg3 {[%emt 0:00:00]} 39. hxg3 {[%emt 0:00:00]} Rag6 {[%emt 0:00:00]} 40. g4 {[%emt 0:00:00]} Kg7 {[%emt 0:00:00]} 41. b4 {[%emt 0:00:00]} Bg5 {[%emt 0:00:06]} 42. Rd1 {[%emt 0:00:06]} a6 {[%emt 0:00:27]} 43. Kg3 {[%emt 0:00:11]} Rh8 {[%emt 0:00:09]} 44. Rxh8 {[%emt 0:00:15]} Kxh8 {[%emt 0:00:00]} 45. f4 {[%emt 0:00:10]} Bh6 {[%emt 0:00:43]} 46. g5 {[%emt 0:00:06]} Bf8 {[%emt 0:00:03]} 47. Kg4 {[%emt 0:00:00]} Rc6 {[%emt 0:00:28]} 48. f5 {[%emt 0:00:08]} Kg7 {[%emt 0:00:05]} 49. f6+ {[%emt 0:00:07]} Kg6 {[%emt 0:01:05]} 50. Rd8 {[%emt 0:00:09]} Rc4+ {[%emt 0:00:06]} 51. Kh3 {[%emt 0:00:04]} Kxg5 {[%emt 0:00:10]} 52. Rxf8 {[%emt 0:00:00]} Kxf6 {[%emt 0:00:00]} 53. Rh8 {[%emt 0:00:06]} Rc3+ {[%emt 0:00:00]} 54. Kg4 {[%emt 0:00:00]} Rxa3 {[%emt 0:00:00]} 55. Rh6+ {[%emt 0:00:00]} Ke7 {[%emt 0:00:02]} 56. Kf5 {[%emt 0:00:00]} Ra4 {[%emt 0:00:21]} 57. Ke5 {[%emt 0:00:05]} f6+ {[%emt 0:00:16]} 58. Rxf6 {[%emt 0:00:08]} Rxb4 {[%emt 0:00:05]} 59. Rxa6 {[%emt 0:00:02]} 1/2-1/2

[Event "Balkan Youth Online-ch 2020"]
[Site "Online"]
[Date "2020.10.31"]
[Round "4.9"]
[White "Smirnov, Maksim"]
[Black "Stefanoski, Daniel"]
[Result "1/2-1/2"]
[ECO "D02"]
[WhiteElo "1139"]
[BlackElo "1129"]
[Annotator "NA RC"]
[PlyCount "180"]
[EventDate "2020.10.31"]
[EventType "swiss"]
[SourceTitle "playchess.com"]
[Source "ChessBase"]
[SourceQuality "1"]
[TimeControl "1500+5"]

1. d4 {[%emt 0:00:00]} d5 {[%emt 0:00:00]} 2. Bf4 {[%emt 0:00:00]} Nc6 {[%emt 0:00:00]} 3. e3 {[%emt 0:00:06]} f6 {[%emt 0:00:03]} 4. Nf3 {[%emt 0:00:00]} Bg4 {[%emt 0:00:00]} 5. Bd3 {[%emt 0:00:00]} e5 {[%emt 0:00:00]} 6. h3 {[%emt 0:00:15]} Bxf3 {[%emt 0:00:11]} 7. Qxf3 {[%emt 0:00:00]} exf4 {[%emt 0:00:00]} 8. Qxf4 {[%emt 0:00:00]} Bd6 {[%emt 0:00:00]} 9. Qg4 {[%emt 0:00:00]} Qd7 {[%emt 0:00:12]} 10. Qh5+ {[%emt 0:00:00]} Qf7 {[%emt 0:00:00]} 11. Qg4 {[%emt 0:00:00]} Nge7 {[%emt 0:00:16]} 12. Nc3 {[%emt 0:00:00]} Nb4 {[%emt 0:00:09]} 13. Bb5+ {[%emt 0:00:00]} c6 {[%emt 0:00:00]} 14. Ba4 {[%emt 0:00:00]} b5 {[%emt 0:00:21]} 15. Bb3 {[%emt 0:00:00]} O-O {[%emt 0:00:02]} 16. a3 {[%emt 0:00:00]} Na6 {[%emt 0:00:04]} 17. h4 {[%emt 0:00:00]} Rab8 {[%emt 0:00:11]} 18. h5 {[%emt 0:00:00]} h6 {[%emt 0:00:09]} 19. e4 {[%emt 0:00:09]} Nc7 {[%emt 0:00:31]} 20. O-O {[%emt 0:00:13]} Ne6 {[%emt 0:00:16]} 21. exd5 {[%emt 0:00:05]} Nxd5 {[%emt 0:00:44]} 22. Nxd5 {[%emt 0:00:00]} cxd5 {[%emt 0:00:01]} 23. Bxd5 {[%emt 0:00:00]} Rfe8 {[%emt 0:00:00]} 24. Rfe1 {[%emt 0:00:00]} f5 {[%emt 0:00:00]} 25. Qg6 {[%emt 0:00:00]} Qxg6 {[%emt 0:00:57]} 26. hxg6 {[%emt 0:00:00]} Kh8 {[%emt 0:00:02]} 27. Rxe6 {[%emt 0:00:05]} Rxe6 {[%emt 0:00:04]} 28. Bxe6 {[%emt 0:00:00]} Rb6 {[%emt 0:00:17]} 29. Bf7 {[%emt 0:00:00]} Rc6 {[%emt 0:00:16]} 30. Re1 {[%emt 0:00:00]} Rc8 {[%emt 0:00:09]} 31. Re6 {[%emt 0:00:00]} Bf8 {[%emt 0:00:13]} 32. c3 {[%emt 0:00:00]} a5 {[%emt 0:00:05]} 33. Re5 {[%emt 0:00:00]} b4 {[%emt 0:00:26]} 34. axb4 {[%emt 0:00:00]} axb4 {[%emt 0:00:00]} 35. c4 {[%emt 0:00:00]} Rd8 {[%emt 0:00:12]} 36. g3 {[%emt 0:00:02]} b3 {[%emt 0:00:13]} 37. Re8 {[%emt 0:00:00]} Rxe8 {[%emt 0:00:03]} 38. Bxe8 {[%emt 0:00:00]} Be7 {[%emt 0:00:12]} 39. Bf7 {[%emt 0:00:00]} Bf6 {[%emt 0:00:00]} 40. c5 {[%emt 0:00:00]} Bxd4 {[%emt 0:00:02]} 41. Bxb3 {[%emt 0:00:00]} Bxc5 {[%emt 0:00:02]} 42. Bf7 {[%emt 0:00:00]} Bb4 {[%emt 0:00:00]} 43. Kg2 {[%emt 0:00:00]} Bd2 {[%emt 0:00:00]} 44. Kf3 {[%emt 0:00:00]} Bc1 {[%emt 0:00:11]} 45. Ke2 {[%emt 0:00:00]} Bxb2 {[%emt 0:00:00]} 46. Kd3 {[%emt 0:00:00]} Be5 {[%emt 0:00:04]} 47. Kc4 {[%emt 0:00:00]} f4 {[%emt 0:00:00]} 48. g4 {[%emt 0:00:00]} f3 {[%emt 0:00:02]} 49. Kd3 {[%emt 0:00:00]} Bh2 {[%emt 0:00:06]} 50. Ke3 {[%emt 0:00:00]} Be5 {[%emt 0:00:00]} 51. Kxf3 {[%emt 0:00:00]} Bf6 {[%emt 0:00:00]} 52. Ke4 {[%emt 0:00:00]} Bg5 {[%emt 0:00:00]} 53. f4 {[%emt 0:00:00]} Bf6 {[%emt 0:00:00]} 54. Kf5 {[%emt 0:00:00]} Be7 {[%emt 0:00:03]} 55. Ke6 {[%emt 0:00:00]} Bd8 {[%emt 0:00:09]} 56. Be8 {[%emt 0:00:02]} Kg8 {[%emt 0:00:21]} 57. Bf7+ {[%emt 0:00:00]} Kf8 {[%emt 0:00:00]} 58. Kd7 {[%emt 0:00:18]} Bf6 {[%emt 0:00:03]} 59. Bd5 {[%emt 0:00:00]} Bh4 {[%emt 0:00:08]} 60. Kd6 {[%emt 0:00:16]} Bg3 {[%emt 0:00:09]} 61. Ke5 {[%emt 0:00:00]} Ke7 {[%emt 0:00:05]} 62. Kf5 {[%emt 0:00:00]} Bh4 {[%emt 0:00:04]} 63. Ke4 {[%emt 0:00:16]} Kf6 {[%emt 0:00:12]} 64. Bf7 {[%emt 0:00:00]} Bg3 {[%emt 0:00:26]} 65. Kf3 {[%emt 0:00:00]} Bh4 {[%emt 0:00:00]} 66. Kg2 {[%emt 0:00:03]} Be1 {[%emt 0:00:01]} 67. Kf3 {[%emt 0:00:03]} Bd2 {[%emt 0:00:00]} 68. Ke4 {[%emt 0:00:00]} Bc1 {[%emt 0:00:00]} 69. Be8 {[%emt 0:00:01]} Bd2 {[%emt 0:00:00]} 70. f5 {[%emt 0:00:04]} Bg5 {[%emt 0:00:00]} 71. Bf7 {[%emt 0:00:00]} Bc1 {[%emt 0:00:00]} 72. Be6 {[%emt 0:00:00]} Ba3 {[%emt 0:00:02]} 73. Kd5 {[%emt 0:00:00]} Be7 {[%emt 0:00:00]} 74. Kc6 {[%emt 0:00:00]} Kg5 {[%emt 0:00:03]} 75. Kd7 {[%emt 0:00:00]} Bf6 {[%emt 0:00:00]} 76. Ke8 {[%emt 0:00:00]} Kxg4 {[%emt 0:00:00]} 77. Kf7 {[%emt 0:00:00]} h5 {[%emt 0:00:00]} 78. Ke8 {[%emt 0:00:04]} h4 {[%emt 0:00:00]} 79. Kd7 {[%emt 0:00:00]} h3 {[%emt 0:00:00]} 80. Kd6 {[%emt 0:00:00]} h2 {[%emt 0:00:00]} 81. Bd5 {[%emt 0:00:00]} Kxf5 {[%emt 0:00:00]} 82. Kc5 {[%emt 0:00:08]} Kxg6 {[%emt 0:00:00]} 83. Kc4 {[%emt 0:00:00]} Kf5 {[%emt 0:00:00]} 84. Kd3 {[%emt 0:00:00]} g5 {[%emt 0:00:00]} 85. Ke2 {[%emt 0:00:00]} g4 {[%emt 0:00:00]} 86. Kf2 {[%emt 0:00:00]} Kf4 {[%emt 0:00:00]} 87. Kg2 {[%emt 0:00:00]} g3 {[%emt 0:00:00]} 88. Bb7 {[%emt 0:00:00]} Bd4 {[%emt 0:00:00]} 89. Bf3 {[%emt 0:00:00]} h1=Q+ {[%emt 0:00:02]} 90. Kxh1 {[%emt 0:00:00]} Kxf3 {[%emt 0:00:14]} 1/2-1/2

[Event "Balkan Youth Online-ch 2020"]
[Site "Online"]
[Date "2020.10.31"]
[Round "4.13"]
[White "Tsarsitalidis, Christos"]
[Black "Pehlivan, Mert"]
[Result "1/2-1/2"]
[ECO "B22"]
[WhiteElo "1786"]
[BlackElo "1653"]
[Annotator "NA RC"]
[PlyCount "103"]
[EventDate "2020.10.31"]
[EventType "swiss"]
[SourceTitle "playchess.com"]
[Source "ChessBase"]
[SourceQuality "1"]
[TimeControl "1500+5"]

1. e4 {[%emt 0:00:00]} c5 {[%emt 0:00:00]} 2. Nf3 {[%emt 0:00:00]} e6 {[%emt 0:00:03]} 3. c3 {[%emt 0:00:00]} d5 {[%emt 0:00:02]} 4. exd5 {[%emt 0:00:00]} Qxd5 {[%emt 0:00:00]} 5. Na3 {[%emt 0:00:00]} Nc6 {[%emt 0:00:08]} 6. Be2 {[%emt 0:00:37]} Nf6 {[%emt 0:00:12]} 7. d4 {[%emt 0:00:05]} Be7 {[%emt 0:01:05]} 8. Bg5 {[%emt 0:03:23]} cxd4 {[%emt 0:02:19]} 9. Nb5 {[%emt 0:00:09]} Qd8 {[%emt 0:00:25]} 10. Nbxd4 {[%emt 0:00:00]} Nxd4 {[%emt 0:01:51]} 11. Qxd4 {[%emt 0:01:39]} Qxd4 {[%emt 0:01:00]} 12. Nxd4 {[%emt 0:00:01]} a6 {[%emt 0:00:18]} 13. Bf3 {[%emt 0:00:09]} h6 {[%emt 0:00:39]} 14. Bf4 {[%emt 0:00:34]} Nd5 {[%emt 0:02:36]} 15. Bxd5 {[%emt 0:00:33]} exd5 {[%emt 0:00:03]} 16. O-O-O {[%emt 0:00:13]} O-O {[%emt 0:00:58]} 17. f3 {[%emt 0:03:38]} g5 {[%emt 0:01:55]} 18. Be3 {[%emt 0:01:15]} Bd7 {[%emt 0:00:44]} 19. Nc2 {[%emt 0:00:33]} Be6 {[%emt 0:00:31]} 20. Bb6 {[%emt 0:00:03]} Rac8 {[%emt 0:01:16]} 21. Rhe1 {[%emt 0:01:42]} Rc6 {[%emt 0:01:09]} 22. Bf2 {[%emt 0:00:50]} Rfc8 {[%emt 0:02:17]} 23. Nd4 {[%emt 0:00:58]} Rd6 {[%emt 0:00:52]} 24. Nf5 {[%emt 0:01:51]} Bxf5 {[%emt 0:00:57]} 25. Rxe7 {[%emt 0:00:00]} b5 {[%emt 0:00:38]} 26. Rd4 {[%emt 0:01:50]} Re6 {[%emt 0:01:27]} 27. Rxe6 {[%emt 0:01:57]} Bxe6 {[%emt 0:00:06]} 28. a4 {[%emt 0:00:27]} Rc4 {[%emt 0:02:03]} 29. Rxc4 {[%emt 0:01:12]} dxc4 {[%emt 0:00:05]} 30. a5 {[%emt 0:00:23]} f5 {[%emt 0:00:22]} 31. g3 {[%emt 0:01:29]} f4 {[%emt 0:00:28]} 32. gxf4 {[%emt 0:00:19]} gxf4 {[%emt 0:00:00]} 33. Bd4 {[%emt 0:00:00]} Bd5 {[%emt 0:00:48]} 34. Be5 {[%emt 0:00:00]} Bxf3 {[%emt 0:00:09]} 35. Bxf4 {[%emt 0:00:00]} h5 {[%emt 0:00:11]} 36. Kd2 {[%emt 0:00:00]} Kf7 {[%emt 0:00:00]} 37. Ke3 {[%emt 0:00:00]} Bc6 {[%emt 0:00:00]} 38. Kd4 {[%emt 0:00:00]} Ke6 {[%emt 0:00:00]} 39. Kc5 {[%emt 0:00:00]} Bd7 {[%emt 0:00:00]} 40. Bg3 {[%emt 0:00:00]} Ke7 {[%emt 0:00:25]} 41. Bh4+ {[%emt 0:00:00]} Ke6 {[%emt 0:00:03]} 42. Kb6 {[%emt 0:00:00]} Bc8 {[%emt 0:00:00]} 43. Kc7 {[%emt 0:00:00]} Bd7 {[%emt 0:00:01]} 44. Bd8 {[%emt 0:00:00]} b4 {[%emt 0:00:11]} 45. cxb4 {[%emt 0:01:12]} Bb5 {[%emt 0:00:00]} 46. Kb6 {[%emt 0:00:04]} Kd7 {[%emt 0:00:14]} 47. Bh4 {[%emt 0:00:01]} Ke6 {[%emt 0:00:00]} 48. Kc5 {[%emt 0:00:02]} Ke5 {[%emt 0:00:00]} 49. Bg3+ {[%emt 0:00:00]} Kf5 {[%emt 0:00:09]} 50. Kd4 {[%emt 0:00:00]} Kg4 {[%emt 0:00:05]} 51. Ke5 {[%emt 0:00:33]} Be8 {[%emt 0:00:12]} 52. Kd4 {[%emt 0:00:46]} 1/2-1/2

[Event "Balkan Youth Online-ch 2020"]
[Site "Online"]
[Date "2020.10.31"]
[Round "4.15"]
[White "Boeru, Dragos-Matei"]
[Black "Lavrencic, Matic"]
[Result "0-1"]
[ECO "B25"]
[WhiteElo "1756"]
[BlackElo "2018"]
[Annotator "RC"]
[PlyCount "104"]
[EventDate "2020.10.31"]
[EventType "swiss"]
[SourceTitle "playchess.com"]
[Source "ChessBase"]
[SourceQuality "1"]
[TimeControl "1500+5"]

1. e4 {[%emt 0:00:00]} c5 {[%emt 0:00:00]} 2. Nc3 {[%emt 0:00:00]} d6 {[%emt 0:00:07]} 3. f4 {[%emt 0:00:00]} g6 {[%emt 0:00:04]} 4. Nf3 {[%emt 0:00:00]} Bg7 {[%emt 0:00:00]} 5. g3 {[%emt 0:00:00]} Nc6 {[%emt 0:00:00]} 6. Bg2 {[%emt 0:00:00]} Nf6 {[%emt 0:00:00]} 7. d3 {[%emt 0:00:00]} O-O {[%emt 0:00:00]} 8. O-O {[%emt 0:00:00]} Rb8 {[%emt 0:00:00]} 9. a4 {[%emt 0:00:00]} a6 {[%emt 0:00:00]} 10. Be3 {[%emt 0:00:00]} b5 {[%emt 0:00:00]} 11. axb5 {[%emt 0:00:00]} axb5 {[%emt 0:00:00]} 12. d4 {[%emt 0:00:17]} Ng4 {[%emt 0:00:00]} 13. Bf2 {[%emt 0:00:05]} Nxf2 {[%emt 0:00:00]} 14. Kxf2 {[%emt 0:00:01]} Nxd4 {[%emt 0:00:45]} 15. Rb1 {[%emt 0:00:34]} Qb6 {[%emt 0:00:02]} 16. Nd5 {[%emt 0:00:13]} Qd8 {[%emt 0:00:12]} 17. Kg1 {[%emt 0:00:16]} e6 {[%emt 0:00:00]} 18. Ne3 {[%emt 0:00:19]} Bb7 {[%emt 0:00:00]} 19. Nd2 {[%emt 0:00:25]} Qb6 {[%emt 0:00:19]} 20. c3 {[%emt 0:00:32]} Nc6 {[%emt 0:00:02]} 21. Kh1 {[%emt 0:00:02]} Ne7 {[%emt 0:00:13]} 22. Re1 {[%emt 0:01:13]} Bc6 {[%emt 0:00:17]} 23. Nb3 {[%emt 0:00:17]} Rfd8 {[%emt 0:00:03]} 24. Qc2 {[%emt 0:00:23]} Ra8 {[%emt 0:00:21]} 25. Rbd1 {[%emt 0:01:01]} Qb7 {[%emt 0:00:06]} 26. Rd2 {[%emt 0:00:48]} Qb6 {[%emt 0:02:57]} 27. Nf1 {[%emt 0:01:59]} b4 {[%emt 0:00:47]} 28. c4 {[%emt 0:01:38]} Ba4 {[%emt 0:00:36]} 29. Red1 {[%emt 0:01:47]} Rac8 {[%emt 0:00:33]} 30. Qd3 {[%emt 0:00:55]} Nc6 {[%emt 0:00:22]} 31. Ra1 {[%emt 0:00:39]} Bxb3 {[%emt 0:00:27]} 32. Qxb3 {[%emt 0:00:00]} Nd4 {[%emt 0:00:00]} 33. Qd3 {[%emt 0:00:13]} Ra8 {[%emt 0:00:06]} 34. Rxa8 {[%emt 0:00:19]} Rxa8 {[%emt 0:00:00]} 35. e5 {[%emt 0:01:14]} Ra1 {[%emt 0:00:00]} 36. exd6 {[%emt 0:00:04]} Qxd6 {[%emt 0:00:00]} 37. Qe4 {[%emt 0:00:11]} Qa6 {[%emt 0:00:06]} 38. b3 {[%emt 0:01:49]} Bf6 {[%emt 0:00:27]} 39. Rd3 {[%emt 0:00:26]} Kg7 {[%emt 0:00:18]} 40. g4 {[%emt 0:00:27]} h6 {[%emt 0:00:14]} 41. g5 {[%emt 0:01:02]} hxg5 {[%emt 0:00:01]} 42. fxg5 {[%emt 0:00:00]} Bxg5 {[%emt 0:00:00]} 43. Qe5+ {[%emt 0:00:01]} Bf6 {[%emt 0:00:00]} 44. Qxc5 {[%emt 0:00:14]} Ne2 {[%emt 0:00:51]} 45. Qxb4 {[%emt 0:02:04]} Nf4 {[%emt 0:00:00]} 46. Rd6 {[%emt 0:01:20]} Qa8 {[%emt 0:00:18]} 47. Rd5 {[%emt 0:01:17]} exd5 {[%emt 0:00:23]} 48. cxd5 {[%emt 0:00:10]} Nxg2 {[%emt 0:00:00]} 49. Kxg2 {[%emt 0:00:00]} Qxd5+ {[%emt 0:00:00]} 50. Kf2 {[%emt 0:00:01]} Qf5+ {[%emt 0:00:00]} 51. Ke3 {[%emt 0:00:00]} Bg5+ {[%emt 0:00:00]} 52. Ke2 {[%emt 0:00:10]} Qxf1# {[%emt 0:00:00]} 0-1

[Event "Balkan Youth Online-ch 2020"]
[Site "Online"]
[Date "2020.10.31"]
[Round "4.16"]
[White "Ivanov, Svetlen"]
[Black "Ipek, Egehan"]
[Result "0-1"]
[ECO "B85"]
[WhiteElo "1781"]
[BlackElo "1723"]
[Annotator "NA RC"]
[PlyCount "70"]
[EventDate "2020.10.31"]
[EventType "swiss"]
[SourceTitle "playchess.com"]
[Source "ChessBase"]
[SourceQuality "1"]
[TimeControl "1500+5"]

1. e4 {[%emt 0:00:00]} c5 {[%emt 0:00:00]} 2. Nf3 {[%emt 0:00:00]} e6 {[%emt 0:00:00]} 3. d4 {[%emt 0:00:00]} cxd4 {[%emt 0:00:00]} 4. Nxd4 {[%emt 0:00:00]} Nc6 {[%emt 0:00:00]} 5. Nc3 {[%emt 0:00:00]} Qc7 {[%emt 0:00:00]} 6. Be3 {[%emt 0:00:00]} a6 {[%emt 0:00:00]} 7. Be2 {[%emt 0:00:00]} Nf6 {[%emt 0:00:00]} 8. f4 {[%emt 0:00:09]} d6 {[%emt 0:03:11]} 9. Bf3 {[%emt 0:00:01]} Bd7 {[%emt 0:00:18]} 10. O-O {[%emt 0:00:11]} Be7 {[%emt 0:00:08]} 11. a4 {[%emt 0:00:19]} O-O {[%emt 0:00:14]} 12. Nb3 {[%emt 0:00:00]} b6 {[%emt 0:01:23]} 13. g4 {[%emt 0:01:41]} Rfc8 {[%emt 0:00:48]} 14. Bg2 {[%emt 0:01:43]} Rab8 {[%emt 0:01:08]} 15. g5 {[%emt 0:05:30]} Ne8 {[%emt 0:00:06]} 16. Qd2 {[%emt 0:03:10]} b5 {[%emt 0:02:07]} 17. a5 {[%emt 0:02:43]} Nb4 {[%emt 0:05:38]} 18. f5 {[%emt 0:03:54]} Nxc2 {[%emt 0:03:16]} 19. Qxc2 {[%emt 0:01:12]} b4 {[%emt 0:00:00]} 20. Bb6 {[%emt 0:00:00]} Qc4 {[%emt 0:01:42]} 21. Nd2 {[%emt 0:00:11]} Qc6 {[%emt 0:00:04]} 22. e5 {[%emt 0:01:12]} d5 {[%emt 0:00:07]} 23. f6 {[%emt 0:01:02]} Bc5+ {[%emt 0:01:51]} 24. Kh1 {[%emt 0:01:29]} Bxb6 {[%emt 0:01:21]} 25. axb6 {[%emt 0:00:02]} bxc3 {[%emt 0:00:01]} 26. bxc3 {[%emt 0:00:31]} Qxc3 {[%emt 0:00:06]} 27. Qxc3 {[%emt 0:00:10]} Rxc3 {[%emt 0:00:00]} 28. Rfb1 {[%emt 0:00:00]} Bb5 {[%emt 0:00:26]} 29. Bf1 {[%emt 0:00:11]} Rxb6 {[%emt 0:02:05]} 30. Bxb5 {[%emt 0:00:00]} Rxb5 {[%emt 0:00:00]} 31. Rxb5 {[%emt 0:00:00]} axb5 {[%emt 0:00:00]} 32. Ra8 {[%emt 0:00:00]} Kf8 {[%emt 0:00:00]} 33. fxg7+ {[%emt 0:00:00]} Kxg7 {[%emt 0:00:00]} 34. Rxe8 {[%emt 0:00:00]} Rc1+ {[%emt 0:00:00]} 35. Kg2 {[%emt 0:00:00]} Rc2 {[%emt 0:00:00]} 0-1

[Event "Balkan Youth Online-ch 2020"]
[Site "Online"]
[Date "2020.10.31"]
[Round "4.17"]
[White "Nikolovski, Kiril"]
[Black "Cimperman, Teo"]
[Result "1/2-1/2"]
[ECO "B23"]
[WhiteElo "1282"]
[BlackElo "1488"]
[Annotator "NA RC"]
[PlyCount "82"]
[EventDate "2020.10.31"]
[EventType "swiss"]
[SourceTitle "playchess.com"]
[Source "ChessBase"]
[SourceQuality "1"]
[TimeControl "1500+5"]

1. e4 {[%emt 0:00:00]} c5 {[%emt 0:00:00]} 2. Nc3 {[%emt 0:00:00]} Nc6 {[%emt 0:00:00]} 3. f4 {[%emt 0:00:00]} g6 {[%emt 0:00:00]} 4. Nf3 {[%emt 0:00:00]} Bg7 {[%emt 0:00:00]} 5. Bb5 {[%emt 0:00:00]} e6 {[%emt 0:00:00]} 6. Bxc6 {[%emt 0:00:00]} bxc6 {[%emt 0:00:00]} 7. d3 {[%emt 0:00:00]} d5 {[%emt 0:00:00]} 8. O-O {[%emt 0:00:00]} Ne7 {[%emt 0:00:00]} 9. Kh1 {[%emt 0:00:46]} O-O {[%emt 0:00:00]} 10. g4 {[%emt 0:00:04]} f5 {[%emt 0:00:13]} 11. g5 {[%emt 0:00:45]} Bb7 {[%emt 0:00:15]} 12. e5 {[%emt 0:00:07]} d4 {[%emt 0:00:17]} 13. Ne2 {[%emt 0:00:01]} Nd5 {[%emt 0:00:10]} 14. Ng3 {[%emt 0:00:15]} Qe8 {[%emt 0:00:26]} 15. Qe1 {[%emt 0:00:14]} h6 {[%emt 0:00:12]} 16. h4 {[%emt 0:00:01]} h5 {[%emt 0:00:00]} 17. Bd2 {[%emt 0:00:30]} Qd7 {[%emt 0:00:00]} 18. Kg2 {[%emt 0:00:30]} Rfb8 {[%emt 0:00:04]} 19. b3 {[%emt 0:00:03]} Bf8 {[%emt 0:00:18]} 20. Nh1 {[%emt 0:00:00]} Be7 {[%emt 0:00:00]} 21. Nf2 {[%emt 0:00:00]} Bd8 {[%emt 0:00:02]} 22. Nd1 {[%emt 0:00:04]} Ba6 {[%emt 0:00:22]} 23. Nb2 {[%emt 0:00:16]} Nb4 {[%emt 0:00:26]} 24. Bxb4 {[%emt 0:01:10]} cxb4 {[%emt 0:00:04]} 25. Nc4 {[%emt 0:00:33]} Bxc4 {[%emt 0:00:00]} 26. dxc4 {[%emt 0:00:12]} c5 {[%emt 0:00:00]} 27. Qe2 {[%emt 0:00:03]} a5 {[%emt 0:00:06]} 28. Ne1 {[%emt 0:00:08]} a4 {[%emt 0:00:14]} 29. Nd3 {[%emt 0:00:17]} Be7 {[%emt 0:00:21]} 30. Qf3 {[%emt 0:00:14]} axb3 {[%emt 0:00:28]} 31. axb3 {[%emt 0:00:10]} Ra7 {[%emt 0:00:30]} 32. Kg3 {[%emt 0:00:23]} Rba8 {[%emt 0:00:09]} 33. Qh1 {[%emt 0:00:01]} Rxa1 {[%emt 0:00:25]} 34. Rxa1 {[%emt 0:00:00]} Ra3 {[%emt 0:00:05]} 35. Rxa3 {[%emt 0:00:02]} bxa3 {[%emt 0:00:00]} 36. Qa8+ {[%emt 0:00:00]} Kg7 {[%emt 0:00:05]} 37. Qxa3 {[%emt 0:00:00]} Qc6 {[%emt 0:00:11]} 38. Nf2 {[%emt 0:00:08]} Qb6 {[%emt 0:00:21]} 39. Nd3 {[%emt 0:00:19]} Qc6 {[%emt 0:00:35]} 40. Nf2 {[%emt 0:00:18]} Qb6 {[%emt 0:00:05]} 41. Nd3 {[%emt 0:00:12]} Qc6 {[%emt 0:00:03]} 1/2-1/2

[Event "Balkan Youth Online-ch 2020"]
[Site "Online"]
[Date "2020.10.31"]
[Round "4.19"]
[White "Markosek, Bine"]
[Black "Markov, Daniel"]
[Result "1-0"]
[ECO "B50"]
[WhiteElo "1287"]
[BlackElo "1386"]
[Annotator "NA RC"]
[PlyCount "69"]
[EventDate "2020.10.31"]
[EventType "swiss"]
[SourceTitle "playchess.com"]
[Source "ChessBase"]
[SourceQuality "1"]
[TimeControl "1500+5"]

1. e4 {[%emt 0:00:00]} c5 {[%emt 0:00:00]} 2. Nf3 {[%emt 0:00:00]} d6 {[%emt 0:00:00]} 3. Bc4 {[%emt 0:00:00]} Nf6 {[%emt 0:00:00]} 4. d3 {[%emt 0:00:00]} e6 {[%emt 0:00:00]} 5. O-O {[%emt 0:00:00]} a6 {[%emt 0:00:00]} 6. a4 {[%emt 0:00:00]} Nc6 {[%emt 0:00:00]} 7. Bf4 {[%emt 0:00:00]} Be7 {[%emt 0:00:03]} 8. Nbd2 {[%emt 0:00:00]} O-O {[%emt 0:00:01]} 9. c3 {[%emt 0:00:00]} Bd7 {[%emt 0:00:07]} 10. Qe2 {[%emt 0:00:04]} Na5 {[%emt 0:00:07]} 11. Rfe1 {[%emt 0:00:16]} b5 {[%emt 0:00:54]} 12. axb5 {[%emt 0:00:08]} axb5 {[%emt 0:00:00]} 13. Bb3 {[%emt 0:00:00]} Nxb3 {[%emt 0:00:07]} 14. Nxb3 {[%emt 0:00:00]} Qb6 {[%emt 0:00:16]} 15. Bg3 {[%emt 0:02:54]} b4 {[%emt 0:00:32]} 16. Nbd2 {[%emt 0:00:09]} bxc3 {[%emt 0:01:14]} 17. bxc3 {[%emt 0:00:07]} Rxa1 {[%emt 0:00:53]} 18. Rxa1 {[%emt 0:00:59]} Qb2 {[%emt 0:00:04]} 19. Ra7 {[%emt 0:01:02]} Qxc3 {[%emt 0:00:56]} 20. e5 {[%emt 0:00:18]} dxe5 {[%emt 0:00:17]} 21. Nxe5 {[%emt 0:00:01]} Qd4 {[%emt 0:01:28]} 22. Ndf3 {[%emt 0:00:26]} Qd5 {[%emt 0:00:23]} 23. Bh4 {[%emt 0:00:12]} Rd8 {[%emt 0:00:28]} 24. h3 {[%emt 0:02:17]} Kf8 {[%emt 0:00:46]} 25. Ng5 {[%emt 0:00:32]} h6 {[%emt 0:00:22]} 26. Ngxf7 {[%emt 0:00:43]} Rb8 {[%emt 0:02:57]} 27. Bxf6 {[%emt 0:00:14]} Rb1+ {[%emt 0:00:37]} 28. Kh2 {[%emt 0:00:07]} Bxf6 {[%emt 0:00:04]} 29. Rxd7 {[%emt 0:00:18]} Qb3 {[%emt 0:00:31]} 30. Qh5 {[%emt 0:02:44]} Qb4 {[%emt 0:01:08]} 31. d4 {[%emt 0:00:57]} Qd2 {[%emt 0:01:17]} 32. Qf3 {[%emt 0:01:05]} Qe1 {[%emt 0:00:27]} 33. Qa8+ {[%emt 0:00:06]} Rb8 {[%emt 0:00:43]} 34. Qxb8+ {[%emt 0:00:00]} Bd8 {[%emt 0:00:00]} 35. Qxd8# {[%emt 0:00:00]} 1-0